bitfinex-derivatives/quotes_BNBF0:USTF0_20250807
["timestamp","ask_amount","ask_price","bid_price","bid_amount"]
[1754545125085,0.87607874,766.58,766.09,0.753]
[1754545125386,0.87607874,766.59,766.09,0.753]
[1754545126181,0.87607874,766.6,766.09,0.753]
[1754545126588,0.87607874,766.61,766.09,0.753]
[1754545127285,0.87607874,766.62,766.09,0.753]
[1754545127581,0.87607874,766.61,766.09,0.753]
[1754545127782,0.87607874,766.6,766.09,0.753]
[1754545128186,0.87607874,766.59,766.09,0.753]
[1754545128386,0.87607874,766.6,766.09,0.753]
[1754545129286,0.87607874,766.61,766.09,0.753]
[1754545129485,0.87607874,766.58,766.09,0.753]
[1754545129684,0.87607874,766.57,766.09,0.753]
[1754545130287,0.87607874,766.58,766.09,0.753]
[1754545130987,0.87607874,766.51,766.09,0.753]
[1754545131284,0.87607874,766.52,766.09,0.753]
[1754545131687,0.87607874,766.51,766.09,0.753]
[1754545132386,0.87607874,766.52,766.09,0.753]
[1754545132985,0.87607874,766.53,766.09,0.753]
[1754545133190,0.87607874,766.51,766.09,0.753]
[1754545133389,0.87607874,766.52,766.09,0.753]
[1754545133590,0.87607874,766.51,766.09,0.753]
[1754545134487,0.87607874,766.58,766.09,0.753]
[1754545135488,0.87607874,766.59,766.09,0.753]
[1754545136190,0.87607874,766.6,766.09,0.753]
[1754545136395,0.87607874,766.49,766.09,0.753]
[1754545137096,0.87607874,766.48,766.09,0.753]
[1754545138300,0.87607874,766.49,766.09,0.753]
[1754545138997,0.87607874,766.5,766.09,0.753]
[1754545139297,0.87607874,766.51,766.09,0.753]
[1754545140402,0.87607874,766.48,766.09,0.753]
[1754545141506,0.87607874,766.47,766.09,0.753]
[1754545141806,0.87607874,766.44,766.09,0.753]
[1754545142005,0.87607874,766.33,766.09,0.753]
[1754545142503,0.87607874,766.43,766.09,0.753]
[1754545142702,0.87607874,766.42,766.09,0.753]
[1754545143202,0.87607874,766.44,766.09,0.753]
[1754545143706,0.87607874,766.34,766.09,0.753]
[1754545144108,0.87607874,766.33,766.09,0.753]
[1754545144307,0.87607874,766.34,766.09,0.753]
[1754545144607,0.87607874,766.37,766.09,0.753]
[1754545145008,0.87607874,766.35,766.09,0.753]
[1754545145310,0.87607874,766.36,766.09,0.753]
[1754545145507,0.87607874,766.41,766.09,0.753]
[1754545146004,0.22691114,767.14,766.09,0.753]
[1754545146005,0.87607874,766.39,766.09,0.753]
[1754545146505,0.87607874,766.4,766.09,0.753]
[1754545147008,0.87607874,766.35,766.09,0.753]
[1754545148111,0.87607874,766.37,766.09,0.753]
[1754545148911,0.87607874,766.38,766.09,0.753]
[1754545149211,0.87607874,766.39,766.09,0.753]
[1754545149412,0.87607874,766.4,766.09,0.753]
[1754545149608,0.87607874,766.43,766.09,0.753]
[1754545149806,0.87607874,766.48,766.09,0.753]
[1754545152209,0.87607874,766.49,766.09,0.753]
[1754545152414,0.87607874,766.48,766.09,0.753]
[1754545153312,0.87607874,766.73,766.09,0.753]
[1754545154315,0.87607874,766.72,766.09,0.753]
[1754545155212,0.87607874,766.71,766.09,0.753]
[1754545156016,0.87607874,766.71,765.48,0.22711476]
[1754545156513,0.87607874,766.59,765.48,0.22711476]
[1754545157317,0.87607874,766.58,765.48,0.22711476]
[1754545158813,0.87607874,766.38,765.48,0.22711476]
[1754545159014,0.87607874,766.37,765.48,0.22711476]
[1754545159414,0.87607874,766.36,765.49,0.889]
[1754545159618,0.87607874,766.35,765.49,0.889]
[1754545159819,0.87607874,766.34,765.49,0.889]
[1754545160019,0.22691114,767.14,765.49,0.889]
[1754545160020,0.87607874,766.33,765.49,0.889]
[1754545160218,0.87607874,766.27,765.49,0.889]
[1754545160519,0.87607874,766.26,765.49,0.889]
[1754545161920,0.87607874,766.28,765.49,0.889]
[1754545162117,0.87607874,766.29,765.49,0.889]
[1754545163318,0.87607874,766.28,765.49,0.889]
[1754545164019,0.87607874,766.29,765.49,0.889]
[1754545164222,0.87607874,766.28,765.49,0.889]
[1754545164718,0.87607874,766.3,765.49,0.889]
[1754545165119,0.87607874,766.32,765.49,0.889]
[1754545165317,0.87607874,766.31,765.49,0.889]
[1754545167319,0.87607874,766.3,765.49,0.889]
[1754545168319,0.87607874,766.28,765.49,0.889]
[1754545169220,0.87607874,766.27,765.49,0.889]
[1754545169425,0.87607874,766.3,765.49,0.889]
[1754545169822,0.87607874,766.31,765.49,0.889]
[1754545170027,0.87607874,766.29,765.49,0.889]
[1754545170223,0.87607874,766.28,765.49,0.889]
[1754545171425,0.87607874,766.27,765.49,0.889]
[1754545172424,0.87607874,766.36,765.49,0.889]
[1754545172626,0.87607874,766.35,765.49,0.889]
[1754545172923,0.87607874,766.38,765.49,0.889]
[1754545173324,0.87607874,766.35,765.49,0.889]
[1754545173528,0.87607874,766.43,765.49,0.889]
[1754545174428,0.87607874,766.42,765.49,0.889]
[1754545174624,0.87607874,766.41,765.49,0.889]
[1754545175128,0.87607874,766.42,765.49,0.889]
[1754545175323,0.87607874,766.41,765.49,0.889]
[1754545175528,0.87607874,766.4,765.49,0.889]
[1754545176328,0.87607874,766.39,765.49,0.889]
[1754545177329,0.87607874,766.38,765.49,0.889]
[1754545178326,0.87607874,766.37,765.49,0.889]
[1754545179231,1.7533074,766.8,765.49,0.889]
[1754545179232,0.87607874,766.36,765.49,0.889]
[1754545179431,0.87607874,766.32,765.49,0.889]
[1754545180230,1.1688716,766.52,765.49,0.889]
[1754545180231,0.87607874,766.31,765.49,0.889]
[1754545181527,0.87607874,766.3,765.49,0.889]
[1754545182331,0.87607874,766.29,765.49,0.889]
[1754545182831,0.87607874,766.26,765.49,0.889]
[1754545183031,0.87607874,766.24,765.49,0.889]
[1754545183433,0.87607874,766.23,765.49,1.76233263]
[1754545184434,0.87607874,766.2,765.51,0.87333263]
[1754545185135,0.87607874,766.19,765.52,0.87333263]
[1754545186232,0.87607874,766.2,765.51,0.87333263]
[1754545186434,0.87607874,766.27,765.49,0.889]
[1754545186835,0.87607874,766.28,765.49,0.889]
[1754545189640,0.87607874,766.27,765.49,0.889]
[1754545190641,0.87607874,766.28,765.49,0.889]
[1754545190841,0.87607874,766.27,765.49,0.889]
[1754545191642,0.87607874,766.28,765.49,0.889]
[1754545193239,0.87607874,766.26,765.52,0.87333263]
[1754545193740,0.87607874,766.27,765.53,0.87333263]
[1754545194142,0.87831986,766.26,765.53,0.87738537]
[1754545194339,0.87831986,766.25,765.54,0.87738537]
[1754545195338,0.87831986,766.25,765.53,0.87738537]
[1754545196445,0.87831986,766.25,765.54,0.877]
[1754545197847,0.87831986,766.23,765.54,0.877]
[1754545198349,0.87831986,766.24,765.54,0.877]
[1754545198646,0.87831986,766.23,765.54,0.877]
[1754545199146,0.87831986,766.22,765.54,0.877]
[1754545200248,0.87831986,766.24,765.54,1.75438537]
[1754545200549,0.87831986,766.23,765.54,1.75438537]
[1754545200946,0.87831986,766.27,765.54,0.877]
[1754545201350,0.87831986,766.29,765.54,0.877]
[1754545201846,0.87831986,766.3,765.54,0.877]
[1754545202050,0.87831986,766.29,765.54,0.877]
[1754545202346,0.87831986,766.3,765.54,0.877]
[1754545202548,0.87831986,766.33,765.56,0.87738537]
[1754545203251,0.87831986,766.33,765.55,0.87738537]
[1754545204349,0.87831986,766.34,765.55,0.87738537]
[1754545205052,0.87831986,766.33,765.54,1.75438537]
[1754545205250,0.87831986,766.34,765.55,0.87738537]
[1754545208950,0.87831986,766.3,765.58,0.87738537]
[1754545210455,0.87831986,766.29,765.58,0.87738537]
[1754545211953,0.87831986,766.28,765.58,0.87738537]
[1754545212351,0.87831986,766.27,765.59,0.87738537]
[1754545212653,0.87831986,766.27,765.54,0.877]
[1754545212654,0.87831986,766.29,765.58,0.87738537]
[1754545214258,0.87831986,766.3,765.57,0.87738537]
[1754545216262,0.87831986,766.3,765.58,0.87738537]
[1754545216457,0.87831986,766.3,765.57,0.87738537]
[1754545217562,0.87831986,766.29,765.58,0.87738537]
[1754545218760,0.87831986,766.28,765.58,0.87738537]
[1754545219362,0.87831986,766.28,765.59,0.87738537]
[1754545219565,0.87831986,766.29,765.59,0.87738537]
[1754545219966,0.87831986,766.29,765.58,0.87738537]
[1754545220362,2.922179,767.11,765.54,0.877]
[1754545220363,0.87831986,766.28,765.59,0.87738537]
[1754545220865,0.87831986,766.28,765.58,0.87738537]
[1754545221165,0.87831986,766.28,765.59,0.87738537]
[1754545222366,0.87831986,766.26,765.59,0.87738537]
[1754545222563,0.87831986,766.25,765.6,0.87738537]
[1754545222767,0.87831986,766.25,765.61,0.87738537]
[1754545223064,0.87831986,766.25,765.61,2.04238537]
[1754545223267,0.87831986,766.25,765.61,1.165]
[1754545223467,0.87831986,766.24,765.61,2.04238537]
[1754545224367,0.87831986,766.23,765.62,0.87738537]
[1754545225263,0.87831986,766.22,765.63,0.87738537]
[1754545225764,0.87831986,766.22,765.61,1.165]
[1754545225765,0.87831986,766.22,765.62,0.87738537]
[1754545226168,0.87831986,766.23,765.62,0.87738537]
[1754545226369,2.922179,766.98,765.61,1.165]
[1754545226370,0.87831986,766.22,765.63,0.87738537]
[1754545226571,0.87831986,766.23,765.64,0.87738537]
[1754545227272,0.87831986,766.22,765.64,0.87738537]
[1754545228271,0.87831986,766.22,765.65,0.87738537]
[1754545229168,0.87831986,766.21,765.65,0.87738537]
[1754545229372,0.87831986,766.21,765.66,0.87738537]
[1754545229572,0.87831986,766.2,765.66,0.87738537]
[1754545230475,0.87831986,766.19,765.67,0.87738537]
[1754545230969,0.87831986,766.18,765.66,0.87738537]
[1754545231173,0.87831986,766.18,765.67,0.87738537]
[1754545231374,0.87831986,766.17,765.67,0.87738537]
[1754545232173,0.87831986,766.17,765.68,0.87738537]
[1754545232474,0.87831986,766.16,765.69,0.87738537]
[1754545234471,0.87831986,766.17,765.69,0.87738537]
[1754545234971,0.87831986,766.16,765.68,0.87738537]
[1754545235175,0.87831986,766.2,765.65,0.87738537]
[1754545235474,0.87831986,766.21,765.66,0.87738537]
[1754545236272,0.87831986,766.2,765.66,0.87738537]
[1754545237576,0.87831986,766.2,765.67,1.051]
[1754545238272,0.87831986,766.21,765.67,1.051]
[1754545238477,0.87831986,766.21,765.67,1.92838537]
[1754545240781,0.87831986,766.2,765.67,1.051]
[1754545242377,0.87831986,766.2,765.67,1.92838537]
[1754545244281,0.87831986,766.19,765.67,1.92838537]
[1754545245077,0.87831986,766.16,765.7,0.87738537]
[1754545245276,0.87831986,766.15,765.7,0.87738537]
[1754545248084,0.87831986,766.14,765.71,0.87738537]
[1754545248282,0.87831986,766.13,765.7,0.87738537]
[1754545248582,0.87831986,766.14,765.71,0.87738537]
[1754545250481,0.87831986,766.13,765.71,0.87738537]
[1754545251382,0.87831986,766.18,765.71,0.87738537]
[1754545251578,0.87831986,766.18,765.72,0.87738537]
[1754545251778,0.87831986,766.2,765.72,0.87738537]
[1754545252087,0.87831986,766.25,765.73,0.87738537]
[1754545252283,0.87831986,766.25,765.67,1.051]
[1754545252284,0.87831986,766.31,765.69,0.87738537]
[1754545252779,0.87831986,766.3,765.68,0.87738537]
[1754545252980,0.87831986,766.29,765.67,1.92838537]
[1754545253583,0.87831986,766.29,765.68,0.87738537]
[1754545254180,0.87831986,766.29,765.67,1.92838537]
[1754545254885,0.87831986,766.27,765.69,0.87738537]
[1754545255184,0.87831986,766.28,765.69,0.87738537]
[1754545255380,0.87831986,766.29,765.71,0.87738537]
[1754545255785,0.87831986,766.26,765.73,0.87738537]
[1754545256785,0.87831986,766.23,765.75,0.87738537]
[1754545257185,0.87831986,766.22,765.76,0.87738537]
[1754545259288,0.87831986,766.21,765.76,0.87738537]
[1754545260286,0.87831986,766.21,765.75,0.87738537]
[1754545261186,0.87831986,766.21,765.76,0.921]
[1754545261589,0.87831986,766.2,765.76,1.79838537]
[1754545264684,0.87831986,766.2,765.77,0.87738537]
[1754545265986,0.87831986,766.19,765.76,1.79838537]
[1754545267689,0.87831986,766.2,765.77,0.87738537]
[1754545273289,0.87831986,766.2,765.76,1.79838537]
[1754545274092,0.87831986,766.21,765.77,0.87738537]
[1754545277691,0.87831986,766.22,765.77,0.87738537]
[1754545279396,0.87831986,766.22,765.78,1.001]
[1754545284694,0.87831986,766.23,765.78,1.001]
[1754545285294,0.87831986,766.24,765.78,1.001]
[1754545287500,0.87831986,766.27,765.78,1.001]
[1754545287700,0.87831986,766.3,765.78,1.001]
[1754545289197,0.87831986,766.34,765.78,1.001]
[1754545289801,0.87831986,766.35,765.78,1.001]
[1754545290399,0.87831986,766.36,765.78,1.001]
[1754545291805,0.87831986,766.38,765.78,1.001]
[1754545292101,0.87831986,766.36,765.79,0.87738537]
[1754545292502,0.87831986,766.37,765.78,1.87838537]
[1754545292900,2.922179,767.39,765.78,1.87838537]
[1754545292901,0.87831986,766.34,765.8,0.87738537]
[1754545293106,0.87831986,766.38,765.84,0.87738537]
[1754545293306,0.87831986,766.38,765.83,0.87738537]
[1754545294509,0.87831986,766.39,765.83,0.87738537]
[1754545296009,0.87831986,766.39,765.78,1.001]
[1754545296010,0.87831986,766.43,765.8,0.87738537]
[1754545296311,0.87831986,766.42,765.8,0.87738537]
[1754545296512,0.22708364,766.72,765.8,0.87738537]
[1754545296513,0.87831986,766.43,765.8,0.87738537]
[1754545298407,0.87831986,766.43,765.79,0.87738537]
[1754545299414,0.87831986,766.44,765.79,0.87738537]
[1754545302711,0.87831986,766.43,765.8,0.87738537]
[1754545303315,0.87831986,766.43,765.79,0.87738537]
[1754545303711,0.87831986,766.43,765.8,0.87738537]
[1754545304416,0.87831986,766.43,765.79,0.87738537]
[1754545305910,0.87831986,766.43,765.78,1.001]
[1754545305911,0.87831986,766.39,765.82,0.87738537]
[1754545307713,0.87831986,766.4,765.83,0.87738537]
[1754545309119,0.87831986,766.39,765.82,0.87738537]
[1754545309720,0.87831986,766.37,765.84,0.87738537]
[1754545310115,0.87831986,766.36,765.84,0.87738537]
[1754545310619,0.87831986,766.38,765.84,0.87738537]
[1754545311116,0.87831986,766.39,765.85,0.87738537]
[1754545311318,0.87831986,766.38,765.84,0.87738537]
[1754545311519,0.87831986,766.39,765.85,0.87738537]
[1754545311716,0.87831986,766.38,765.85,0.87738537]
[1754545313215,0.87831986,766.38,765.84,0.87738537]
[1754545314423,0.87831986,766.4,765.83,0.87738537]
[1754545314618,0.87831986,766.4,765.84,1.72138537]
[1754545315320,0.87831986,766.4,765.85,0.87738537]
[1754545315520,0.87831986,766.41,765.85,0.87738537]
[1754545315924,0.87831986,766.42,765.86,0.87738537]
[1754545316120,0.87831986,766.41,765.86,0.87738537]
[1754545316321,0.87831986,766.42,765.86,0.87738537]
[1754545316521,0.87831986,766.41,765.86,0.87738537]
[1754545318726,0.87831986,766.45,765.86,0.87738537]
[1754545318926,0.87831986,766.47,765.84,1.72138537]
[1754545319527,0.87831986,766.48,765.84,1.72138537]
[1754545320226,0.87831986,766.47,765.84,0.844]
[1754545320723,0.87831986,766.47,765.84,1.72138537]
[1754545321022,0.87831986,766.51,765.87,0.87738537]
[1754545324728,0.87831986,766.52,765.87,0.87738537]
[1754545325023,0.87831986,766.51,765.88,0.87738537]
[1754545325228,0.87831986,766.52,765.88,0.87738537]
[1754545325430,0.87831986,766.58,765.85,0.87738537]
[1754545325825,0.87831986,766.61,765.88,0.87738537]
[1754545326127,0.87831986,766.67,765.94,0.87738537]
[1754545326428,0.87831986,766.67,765.93,0.87738537]
[1754545327126,0.87831986,766.67,765.91,0.87738537]
[1754545327625,0.87831986,766.68,765.92,0.87738537]
[1754545328330,0.87831986,766.68,765.91,0.87738537]
[1754545329229,0.87831986,766.69,765.91,0.87738537]
[1754545331133,0.87831986,766.69,765.84,0.844]
[1754545331134,0.87831986,766.69,765.9,0.87738537]
[1754545331330,0.87831986,766.71,765.9,0.87738537]
[1754545331629,0.87831986,766.72,765.91,0.87738537]
[1754545331834,0.87831986,766.74,765.92,0.87738537]
[1754545332233,0.87831986,766.75,765.92,0.87738537]
[1754545332928,0.87831986,766.76,765.93,0.87738537]
[1754545333130,0.87831986,766.77,765.92,0.87738537]
[1754545333433,0.87831986,766.76,765.93,0.87738537]
[1754545333629,0.87831986,766.77,765.93,0.87738537]
[1754545334036,0.87831986,766.76,765.93,0.87738537]
[1754545334336,0.87831986,766.77,765.92,0.87738537]
[1754545335333,0.87831986,766.73,765.95,0.87738537]
[1754545336239,0.87831986,766.73,765.94,0.87738537]
[1754545336435,0.87831986,766.73,765.95,0.87738537]
[1754545337335,0.87831986,766.73,765.94,0.87738537]
[1754545338136,0.87831986,766.74,765.94,0.87738537]
[1754545338437,0.87831986,766.73,765.94,0.87738537]
[1754545339140,0.22703771,766.81,765.94,0.87738537]
[1754545339141,0.87831986,766.74,765.94,0.87738537]
[1754545341137,0.22703771,766.81,765.95,0.87738537]
[1754545341138,0.87831986,766.71,765.95,0.87738537]
[1754545341337,0.87831986,766.71,765.96,0.87738537]
[1754545341643,0.87831986,766.7,765.96,0.87738537]
[1754545342039,0.87831986,766.7,765.97,0.87738537]
[1754545342239,0.87831986,766.69,765.97,0.87738537]
[1754545344441,0.87831986,766.67,765.99,0.87738537]
[1754545345144,0.87831986,766.68,765.98,0.87738537]
[1754545345342,0.87831986,766.67,765.99,0.87738537]
[1754545346246,0.87831986,766.68,765.98,0.87738537]
[1754545346546,0.87831986,766.67,765.99,0.87738537]
[1754545346747,0.87831986,766.81,765.9,0.87738537]
[1754545346943,0.87831986,766.89,765.97,0.87738537]
[1754545348146,1.10533832,766.9,765.97,0.87738537]
[1754545348648,0.87831986,766.89,765.97,0.87738537]
[1754545349149,1.10533832,766.9,765.97,0.87738537]
[1754545349949,1.10533832,766.9,765.96,0.87738537]
[1754545351144,0.22701846,766.9,765.96,0.87738537]
[1754545351550,1.10533832,766.9,765.96,0.87738537]
[1754545352249,0.22701846,766.9,765.96,0.87738537]
[1754545353852,1.10533832,766.9,765.97,0.87738537]
[1754545354352,0.87831986,766.89,765.97,0.87738537]
[1754545354554,0.87831986,766.88,765.98,0.87738537]
[1754545356156,0.87831986,766.87,765.98,0.87738537]
[1754545356751,0.87831986,766.83,766.01,0.87738537]
[1754545358351,0.87831986,766.85,766.0,0.87738537]
[1754545359556,0.87831986,766.84,766.0,0.87738537]
[1754545361652,0.87831986,766.83,766.01,0.87738537]
[1754545363355,0.87831986,766.82,766.01,0.87738537]
[1754545363758,0.87831986,766.81,766.02,0.87738537]
[1754545365464,0.87831986,766.81,766.03,0.87738537]
[1754545365664,0.87831986,766.8,766.03,0.87738537]
[1754545366461,0.87831986,766.84,766.01,0.87738537]
[1754545366664,2.922179,767.7,766.01,0.87738537]
[1754545366665,0.87831986,766.85,766.01,0.87738537]
[1754545367065,0.87831986,766.88,766.04,0.87738537]
[1754545367462,0.87831986,766.89,766.05,0.87738537]
[1754545368266,0.87831986,766.88,766.05,0.87738537]
[1754545368466,0.87831986,766.88,766.06,0.87738537]
[1754545370561,0.87831986,766.87,766.06,0.87738537]
[1754545371363,0.87831986,766.87,766.07,0.87738537]
[1754545371662,0.87831986,766.87,766.07,1.69038537]
[1754545371868,0.87831986,766.86,766.07,0.813]
[1754545373165,0.87831986,766.87,766.07,1.69038537]
[1754545373469,0.87831986,766.86,766.07,1.69038537]
[1754545374272,0.87831986,766.86,766.08,0.87738537]
[1754545374669,0.22698958,767.01,766.08,0.87738537]
[1754545374670,0.87831986,766.85,766.08,0.87738537]
[1754545375572,0.87831986,766.85,766.09,0.87738537]
[1754545376367,0.87831986,766.79,766.12,0.87738537]
[1754545377267,0.87831986,766.8,766.12,0.87738537]
[1754545377471,0.87831986,766.78,766.13,0.87738537]
[1754545378368,0.87831986,766.78,766.14,0.87738537]
[1754545379468,0.87831986,766.77,766.15,0.87738537]
[1754545379870,0.87831986,766.77,766.14,0.87738537]
[1754545380167,0.87831986,766.76,766.15,0.87738537]
[1754545381270,0.87831986,766.76,766.16,0.87738537]
[1754545382073,0.87831986,766.75,766.16,0.87738537]
[1754545383171,0.87831986,766.74,766.17,0.87738537]
[1754545384169,0.87831986,766.73,766.18,0.87738537]
[1754545385176,0.87831986,766.73,766.19,0.87738537]
[1754545385373,0.87831986,766.73,766.18,0.87738537]
[1754545385770,0.87831986,766.73,766.19,0.87738537]
[1754545386174,0.87831986,766.8,766.14,0.87738537]
[1754545389275,0.87831986,766.81,766.14,0.87738537]
[1754545390275,0.87831986,766.8,766.14,0.87738537]
[1754545393477,0.87831986,766.79,766.14,0.87738537]
[1754545395380,0.87831986,766.82,766.07,0.813]
[1754545395880,0.87831986,766.83,766.07,0.813]
[1754545396080,0.87831986,766.82,766.07,0.813]
[1754545396280,0.87831986,766.81,766.07,0.813]
[1754545399286,0.87831986,766.8,766.07,0.813]
[1754545404184,0.87831986,766.79,766.07,1.69038537]
[1754545405189,0.87831986,766.71,766.12,0.87738537]
[1754545405884,0.87831986,766.68,766.14,0.87738537]
[1754545406187,0.87831986,766.68,766.15,0.87738537]
[1754545406583,0.87831986,766.67,766.15,0.87738537]
[1754545413292,0.87831986,766.66,766.15,0.87738537]
[1754545414695,0.87831986,766.67,766.16,0.87738537]
[1754545414900,0.87831986,766.66,766.16,0.87738537]
[1754545416099,0.87831986,766.67,766.16,0.87738537]
[1754545416299,0.87831986,766.75,766.1,0.87738537]
[1754545416499,0.87831986,766.74,766.1,0.87738537]
[1754545417300,0.87831986,766.74,766.09,0.87738537]
[1754545417795,0.87831986,766.72,766.1,0.87738537]
[1754545418899,0.87831986,766.7,766.11,0.87738537]
[1754545422201,0.87831986,766.71,766.11,0.87738537]
[1754545424098,0.87831986,766.71,766.12,0.841]
[1754545424499,0.87831986,766.7,766.12,0.841]
[1754545426103,0.87831986,766.63,766.16,0.87738537]
[1754545428205,0.87831986,766.64,766.17,0.87738537]
[1754545428703,0.87831986,766.63,766.17,0.87738537]
[1754545429006,0.87831986,766.64,766.17,0.87738537]
[1754545429204,0.87831986,766.63,766.17,0.87738537]
[1754545432009,0.87831986,766.62,766.17,0.87738537]
[1754545432407,0.87831986,766.62,766.18,0.87738537]
[1754545432910,0.87831986,766.63,766.18,0.87738537]
[1754545434409,0.87831986,766.63,766.19,0.87738537]
[1754545437920,0.87831986,766.69,766.15,0.87738537]
[1754545438613,0.87831986,766.69,766.16,0.859]
[1754545439318,0.87831986,766.68,766.16,0.859]
[1754545440119,0.87831986,766.67,766.16,1.73638537]
[1754545443324,0.87831986,766.66,766.17,0.87738537]
[1754545444421,0.87831986,766.65,766.16,0.859]
[1754545444620,0.87831986,766.67,766.16,0.859]
[1754545446322,0.87831986,766.66,766.16,0.859]
[1754545447827,0.87831986,766.63,766.16,1.73638537]
[1754545449426,0.87831986,766.63,766.17,0.87738537]
[1754545451131,0.87831986,766.67,766.16,0.859]
[1754545452528,0.87831986,766.68,766.16,0.859]
[1754545453232,0.87831986,766.67,766.16,0.859]
[1754545454431,0.87831986,766.66,766.17,0.87738537]
[1754545460634,0.87831986,766.67,766.17,0.87738537]
[1754545461134,0.87831986,766.61,766.21,0.87738537]
[1754545461832,0.87831986,766.6,766.21,0.87738537]
[1754545464038,0.87831986,766.6,766.22,0.87738537]
[1754545464332,0.87831986,766.6,766.21,0.87738537]
[1754545466535,0.87831986,766.6,766.22,0.87738537]
[1754545467036,0.87831986,766.62,766.2,0.87738537]
[1754545467736,0.87831986,766.61,766.21,0.87738537]
[1754545469238,0.87831986,766.61,766.2,0.87738537]
[1754545469935,0.87831986,766.6,766.2,0.87738537]
[1754545470835,0.87831986,766.61,766.2,0.87738537]
[1754545472835,0.87831986,766.61,766.21,0.87738537]
[1754545473439,0.87831986,766.62,766.21,0.87738537]
[1754545474039,0.87831986,766.61,766.21,0.87738537]
[1754545476941,0.87831986,766.6,766.22,0.87738537]
[1754545480140,0.87831986,766.61,766.21,0.87738537]
[1754545483344,0.87831986,766.64,766.19,0.87738537]
[1754545488752,0.87831986,766.64,766.2,0.87738537]
[1754545488955,0.87831986,766.64,766.05,1.1630209]
[1754545488956,0.87831986,766.65,766.19,0.87738537]
[1754545489959,0.87831986,766.64,766.19,0.87738537]
[1754545490454,0.87831986,766.64,766.2,0.98]
[1754545493257,0.87831986,766.62,766.21,0.87738537]
[1754545493554,0.87831986,766.63,766.2,1.85738537]
[1754545497355,0.87831986,766.64,766.2,1.85738537]
[1754545498855,0.87831986,766.63,766.2,1.85738537]
[1754545499762,0.87831986,766.62,766.2,1.85738537]
[1754545499961,0.87831986,766.63,766.2,1.85738537]
[1754545500461,0.87831986,766.65,766.2,0.98]
[1754545500858,0.87831986,766.64,766.2,0.98]
[1754545501661,0.87831986,766.65,766.2,0.98]
[1754545502762,0.87831986,766.64,766.2,0.98]
[1754545502963,0.87831986,766.65,766.2,0.98]
[1754545503259,0.87831986,766.64,766.2,0.98]
[1754545504566,0.87831986,766.64,766.2,1.85738537]
[1754545504962,0.87831986,766.63,766.2,1.85738537]
[1754545505460,0.87831986,766.62,766.2,0.98]
[1754545507362,0.87831986,766.61,766.2,0.98]
[1754545510368,0.87831986,766.6,766.2,0.98]
[1754545515777,0.87831986,766.64,766.2,0.98]
[1754545517879,0.87831986,766.66,766.2,0.98]
[1754545519081,0.87831986,766.67,766.2,0.98]
[1754545519283,0.87831986,766.68,766.2,0.98]
[1754545519680,0.87831986,766.69,766.2,0.98]
[1754545520280,0.87831986,766.68,766.2,0.98]
[1754545520982,0.87831986,766.76,766.2,0.98]
[1754545524391,0.87831986,766.75,766.2,0.98]
[1754545524691,0.87831986,766.74,766.2,1.85738537]
[1754545526291,0.87831986,766.75,766.2,1.85738537]
[1754545527089,0.87831986,766.72,766.21,0.87738537]
[1754545527389,0.87831986,766.74,766.26,0.87738537]
[1754545527589,0.87831986,766.75,766.3,0.87738537]
[1754545528191,0.87831986,766.84,766.23,0.87738537]
[1754545528391,0.87831986,766.85,766.23,0.87738537]
[1754545529392,0.87831986,766.86,766.22,0.87738537]
[1754545530791,0.87831986,767.04,766.25,0.87738537]
[1754545531393,0.87831986,767.05,766.23,0.87738537]
[1754545532497,0.87831986,767.06,766.22,0.87738537]
[1754545532696,0.87831986,767.0,766.29,0.87738537]
[1754545532996,0.87831986,767.05,766.48,0.87738537]
[1754545533493,0.87831986,767.08,766.46,0.87738537]
[1754545533997,0.87831986,767.07,766.46,0.87738537]
[1754545534492,0.87831986,767.09,766.44,0.87738537]
[1754545535501,0.87831986,767.11,766.42,0.87738537]
[1754545536401,0.87831986,767.12,766.41,0.87738537]
[1754545537600,0.87831986,767.14,766.4,0.87738537]
[1754545538400,0.87831986,767.15,766.39,0.87738537]
[1754545538603,1.39578866,767.29,766.24,1.1630209]
[1754545538799,0.87656608,767.15,766.39,0.87466528]
[1754545539202,0.87656608,767.15,766.25,1.157]
[1754545539203,0.87656608,767.15,766.38,0.87466528]
[1754545539606,0.87656608,767.16,766.38,0.87466528]
[1754545539903,0.87656608,767.13,766.4,0.87466528]
[1754545540307,0.87656608,767.14,766.38,0.87466528]
[1754545540603,0.87656608,767.15,766.38,0.87466528]
[1754545541406,0.87656608,767.16,766.37,0.87466528]
[1754545542407,0.87656608,767.18,766.37,0.87466528]
[1754545542808,0.87656608,767.16,766.37,0.87466528]